fUSD/lending_fUSD_20240523
["ID","MTS","AMOUNT","RATE_DAILY","PERIOD"]
[327755907,1716432669163,-1174.34,0.00023561,2]
[327755908,1716432669173,-652.81,0.00023561,2]
[327755909,1716432669183,-747.59,0.00023561,2]
[327755910,1716432669193,-500.0,0.00023561,2]
[327755911,1716432669202,-500.0,0.00023561,2]
[327755912,1716432669212,-585.21,0.00023561,2]
[327755913,1716432669222,-500.0,0.00023561,2]
[327755914,1716432669232,-3383.27,0.00023561,2]
[327755915,1716432669242,-500.0,0.00023561,2]
[327755916,1716432669251,-891.97,0.00023561,2]
[327755917,1716432669261,-809.95,0.00023561,2]
[327755918,1716432669272,-792.86,0.00023561,2]
[327755919,1716432669283,-152.51987662,0.00023569,2]
[327755920,1716432669292,-232.99639557,0.00023586,2]
[327755921,1716432669301,-154.99328839,0.00023597,2]
[327755922,1716432669310,-1621.06,0.000236,2]
[327755923,1716432669320,-152.51987662,0.00023632,2]
[327755924,1716432669330,-158.97861239,0.00023637,2]
[327755925,1716432669340,-783.26602798,0.0002364,2]
[327755926,1716432669350,-232.99639557,0.00023644,2]
[327755927,1716432669360,-220.0,0.00023665,2]
[327755928,1716432669370,-182.95330127,0.00023685,2]
[327755929,1716432669380,-150.0,0.00023688,2]
[327755930,1716432669391,-232.99639557,0.00023694,2]
[327755931,1716432669400,-153.22353761,0.00023701,2]
[327755932,1716432669410,-182.95330127,0.00023707,2]
[327755933,1716432669420,-151.77,0.00023718,2]
[327755934,1716432669429,-150.0,0.00023718,2]
[327755935,1716432669439,-150.0,0.00023718,2]
[327755936,1716432669448,-150.0,0.00023718,2]
[327755937,1716432669458,-150.0,0.00023718,2]
[327755938,1716432669468,-150.0,0.00023718,2]
[327755939,1716432669477,-150.0,0.00023718,2]
[327755940,1716432669487,-150.0,0.00023718,2]
[327755941,1716432669497,-166.66666667,0.00023723,2]
[327755942,1716432669507,-154.03112156,0.00023726,2]
[327755943,1716432669519,-152.51987662,0.00023737,2]
[327755944,1716432669534,-333.49233576,0.00023779,2]
[327755945,1716432669543,-152.51987662,0.00023782,2]
[327755946,1716432669554,-232.99639557,0.00023805,2]
[327755947,1716432669564,-200.0,0.00023806,2]
[327755948,1716432669574,-1000.0,0.00023806,2]
[327755949,1716432669585,-500.0,0.00023806,2]
[327755950,1716432669594,-200.0,0.00023806,2]
[327755951,1716432669607,-200.0,0.00023807,2]
[327755952,1716432669618,-1000.0,0.00023807,2]
[327755953,1716432669628,-202.980849,0.00023807,2]
[327755954,1716432669638,-500.0,0.00023807,2]
[327755955,1716432669648,-500.0,0.00023807,2]
[327755956,1716432669657,-200.0,0.00023807,2]
[327755957,1716432669667,-272.50503155,0.00023835,2]
[327755958,1716432669677,-500.0,0.00023835,2]
[327755959,1716432669687,-500.0,0.00023835,2]
[327755960,1716432669697,-557.36183932,0.00023835,2]
[327755961,1716432669707,-1288.33,0.00023835,2]
[327755962,1716432669716,-500.0,0.00023835,2]
[327755963,1716432669726,-500.0,0.00023835,2]
[327755964,1716432669736,-500.0,0.00023835,2]
[327755965,1716432669745,-1232.58,0.00023835,2]
[327755966,1716432669755,-708.02,0.00023835,2]
[327755967,1716432669766,-1941.35,0.00023835,2]
[327755968,1716432669775,-578.8,0.00023835,2]
[327755969,1716432669785,-641.84088559,0.00023835,2]
[327755970,1716432669794,-500.0,0.00023835,2]
[327755971,1716432669803,-549.84,0.00023835,2]
[327755972,1716432669812,-213.96864902,0.00023835,2]
[327755973,1716432669822,-500.0,0.00023835,2]
[327755974,1716432669831,-1949.84,0.00023835,2]
[327755975,1716432669840,-854.74,0.00023835,2]
[327755976,1716432669850,-506.59086359,0.00023835,2]
[327755977,1716432669860,-683.02,0.00023835,2]
[327755978,1716432669870,-1713.52,0.00023835,2]
[327755979,1716432669880,-740.18,0.00023835,2]
[327755980,1716432669890,-791.87,0.00023835,2]
[327755981,1716432669900,-512.39,0.00023835,2]
[327755982,1716432669910,-500.0,0.00023835,2]
[327755983,1716432669920,-500.0,0.00023835,2]
[327755984,1716432669930,-500.0,0.00023835,2]
[327755985,1716432669939,-500.0,0.00023835,2]
[327755986,1716432669951,-500.0,0.00023835,2]
[327755987,1716432669960,-500.0,0.00023835,2]
[327755988,1716432669971,-559.16,0.00023835,2]
[327755989,1716432669982,-500.0,0.00023835,2]
[327755990,1716432669992,-500.0,0.00023835,2]
[327755991,1716432670002,-500.0,0.00023835,2]
[327755992,1716432670012,-500.0,0.00023835,2]
[327755993,1716432670023,-500.0,0.00023835,2]
[327755994,1716432670032,-500.0,0.00023835,2]
[327755995,1716432670042,-500.0,0.00023835,2]
[327755996,1716432670052,-500.0,0.00023835,2]
[327755997,1716432670061,-636.15,0.00023835,2]
[327755998,1716432670071,-881.15,0.00023835,2]
[327755999,1716432670080,-922.68,0.00023835,2]
[327756000,1716432670090,-3262.56,0.00023835,2]
[327756001,1716432670099,-788.42,0.00023835,2]
[327756002,1716432670109,-589.99,0.00023835,2]
[327756003,1716432670118,-500.0,0.00023835,2]
[327756004,1716432670127,-500.0,0.00023835,2]
[327756005,1716432670135,-500.0,0.00023835,2]
[327756006,1716432670144,-500.0,0.00023835,2]
[327756007,1716432670153,-500.0,0.00023835,2]
[327756008,1716432670162,-500.0,0.00023835,2]
[327756009,1716432670172,-584.27913347,0.00023835,2]
[327756010,1716432670182,-500.0,0.00023835,2]
[327756011,1716432670191,-500.0,0.00023835,2]
[327756012,1716432670201,-500.0,0.00023835,2]
[327756013,1716432670210,-500.0,0.00023835,2]
[327756014,1716432670220,-500.0,0.00023835,2]
[327756015,1716432670230,-500.0,0.00023835,2]
[327756016,1716432670239,-500.0,0.00023835,2]
[327756017,1716432670248,-500.0,0.00023835,2]
[327756018,1716432670258,-500.0,0.00023835,2]
[327756019,1716432670269,-500.0,0.00023835,2]
[327756020,1716432670278,-663.29,0.00023835,2]
[327756021,1716432670288,-224.42279195,0.00023835,2]
[327756022,1716432670297,-827.51,0.00023835,2]
[327756023,1716432670307,-654.97,0.00023835,2]
[327756024,1716432670316,-500.0,0.00023835,2]
[327756025,1716432670326,-500.0,0.00023835,2]
[327756026,1716432670336,-500.0,0.00023835,2]
[327756027,1716432670346,-641.52,0.00023835,2]
[327756028,1716432670356,-500.0,0.00023835,2]
[327756029,1716432670366,-500.0,0.00023835,2]
[327756030,1716432670375,-500.0,0.00023835,2]
[327756031,1716432670386,-660.72,0.00023835,2]
[327756032,1716432670395,-579.29,0.00023835,2]
[327756033,1716432670406,-590.2,0.00023835,2]
[327756034,1716432670416,-500.0,0.00023835,2]
[327756035,1716432670426,-500.0,0.00023835,2]
[327756036,1716432670436,-1606.22,0.00023835,2]
[327756037,1716432670447,-500.0,0.00023835,2]
[327756038,1716432670457,-500.0,0.00023835,2]
[327756039,1716432670468,-500.0,0.00023835,2]
[327756040,1716432670479,-500.0,0.00023835,2]
[327756041,1716432670490,-500.0,0.00023835,2]
[327756042,1716432670500,-586.87069993,0.00023835,2]
[327756043,1716432670511,-500.0,0.00023835,2]
[327756044,1716432670531,-500.0,0.00023835,2]
[327756045,1716432670541,-500.0,0.00023835,2]
[327756046,1716432670551,-500.0,0.00023835,2]
[327756047,1716432670563,-500.0,0.00023835,2]
[327756048,1716432670574,-500.0,0.00023835,2]
[327756049,1716432670584,-500.0,0.00023835,2]
[327756050,1716432670594,-500.0,0.00023835,2]
[327756051,1716432670605,-500.0,0.00023835,2]
[327756052,1716432670615,-500.0,0.00023835,2]
[327756053,1716432670626,-560.05703601,0.00023835,2]
[327756054,1716432670635,-500.0,0.00023835,2]
[327756055,1716432670645,-500.0,0.00023835,2]
[327756056,1716432670655,-500.0,0.00023835,2]
[327756057,1716432670666,-500.0,0.00023835,2]
[327756058,1716432670676,-500.0,0.00023835,2]
[327756059,1716432670686,-173.34502196,0.00023835,2]
[327756060,1716432670697,-500.0,0.00023835,2]
[327756061,1716432670706,-500.0,0.00023835,2]
[327756062,1716432670716,-500.0,0.00023835,2]
[327756063,1716432670726,-500.0,0.00023835,2]
[327756064,1716432670736,-500.0,0.00023835,2]
[327756065,1716432670747,-500.0,0.00023835,2]
[327756066,1716432670756,-500.0,0.00023835,2]
[327756067,1716432670769,-500.0,0.00023835,2]
[327756068,1716432670780,-1524.72,0.00023835,2]
[327756069,1716432670790,-500.0,0.00023835,2]
[327756070,1716432670799,-500.0,0.00023835,2]
[327756071,1716432670809,-500.0,0.00023835,2]
[327756072,1716432670819,-262.56,0.00023835,2]
[327756073,1716432670829,-500.0,0.00023835,2]
[327756074,1716432670839,-500.0,0.00023835,2]
[327756075,1716432670848,-500.0,0.00023835,2]
[327756076,1716432670860,-267.22023049,0.00023835,2]
[327756077,1716432670870,-500.0,0.00023835,2]
[327756078,1716432670880,-500.0,0.00023835,2]
[327756079,1716432670891,-409.76325608,0.00023835,2]
[327756080,1716432670901,-500.0,0.00023835,2]
[327756081,1716432670911,-500.0,0.00023835,2]
[327756082,1716432670921,-500.0,0.00023835,2]
[327756083,1716432670931,-500.0,0.00023835,2]
[327756084,1716432670941,-500.0,0.00023835,2]
[327756085,1716432670951,-500.0,0.00023835,2]
[327756086,1716432670961,-500.0,0.00023835,2]
[327756087,1716432670971,-500.0,0.00023835,2]
[327756088,1716432670981,-500.0,0.00023835,2]
[327756089,1716432670991,-434.9233081,0.00023835,2]
[327756090,1716432671001,-500.0,0.00023835,2]
[327756091,1716432671011,-500.0,0.00023835,2]
[327756092,1716432671023,-927.84,0.00023835,2]
[327756093,1716432671033,-642.52,0.00023835,2]
[327756094,1716432671042,-500.0,0.00023835,2]
[327756095,1716432671052,-817.98,0.00023835,2]
[327756096,1716432671061,-500.0,0.00023835,2]
[327756097,1716432671071,-500.0,0.00023835,2]
[327756098,1716432671080,-552.1,0.00023835,2]
[327756099,1716432671091,-1577.19,0.00023835,2]
[327756100,1716432671101,-500.0,0.00023835,2]
[327756101,1716432671111,-500.0,0.00023835,2]
[327756102,1716432671121,-500.0,0.00023835,2]
[327756103,1716432671131,-1189.63,0.00023835,2]
[327756104,1716432671141,-706.04,0.00023835,2]
[327756105,1716432671151,-500.0,0.00023835,2]
[327756106,1716432671160,-1375.34,0.00023835,2]
[327756107,1716432671170,-681.11,0.00023835,2]
[327756108,1716432671180,-500.0,0.00023835,2]
[327756109,1716432671191,-2368.11,0.00023835,2]
[327756110,1716432671201,-500.0,0.00023835,2]
[327756111,1716432671211,-545.65,0.00023835,2]
[327756112,1716432671221,-553.59,0.00023835,2]
[327756113,1716432671231,-500.0,0.00023835,2]
[327756114,1716432671240,-418.54295292,0.00023835,2]
[327756115,1716432671251,-603.91,0.00023835,2]
[327756116,1716432671260,-850.66,0.00023835,2]
[327756117,1716432671272,-1474.23,0.00023835,2]
[327756118,1716432671281,-9892.35,0.00023835,2]
[327756119,1716432671291,-631.25,0.00023835,2]
[327756120,1716432671300,-1819.25,0.00023835,2]
[327756121,1716432671310,-500.0,0.00023835,2]
[327756122,1716432671320,-500.0,0.00023835,2]
[327756123,1716432671331,-510.74,0.00023835,2]
[327756124,1716432671340,-500.0,0.00023835,2]
[327756125,1716432671350,-500.0,0.00023835,2]
[327756126,1716432671360,-550.1400353,0.00023835,2]
[327756127,1716432671371,-755.13,0.00023835,2]
[327756128,1716432671380,-507.14,0.00023835,2]
[327756129,1716432671390,-3419.56,0.00023835,2]
[327756130,1716432671400,-500.0,0.00023835,2]
[327756131,1716432671410,-644.53,0.00023835,2]
[327756132,1716432671419,-500.0,0.00023835,2]
[327756133,1716432671430,-618.49,0.00023835,2]
[327756134,1716432671440,-639.58,0.00023835,2]
[327756135,1716432671451,-5605.18,0.00023835,2]
[327756136,1716432671460,-274.51095321,0.00023835,2]
[327756137,1716432671470,-3848.47,0.00023835,2]
[327756138,1716432671479,-500.0,0.00023835,2]
[327756139,1716432671491,-500.0,0.00023835,2]
[327756140,1716432671501,-500.0,0.00023835,2]
[327756141,1716432671511,-972.37,0.00023835,2]
[327756142,1716432671522,-500.0,0.00023835,2]
[327756143,1716432671535,-552.38,0.00023835,2]
[327756144,1716432671545,-500.0,0.00023835,2]
[327756145,1716432671555,-705.43,0.00023835,2]
[327756146,1716432671565,-4365.07,0.00023835,2]
[327756147,1716432671576,-400.23299587,0.00023835,2]
[327756148,1716432671586,-500.0,0.00023835,2]
[327756149,1716432671596,-1949.72,0.00023835,2]
[327756150,1716432671609,-500.0,0.00023835,2]
[327756151,1716432671619,-500.0,0.00023835,2]
[327756152,1716432671629,-500.0,0.00023835,2]
[327756153,1716432671640,-500.0,0.00023835,2]
[327756154,1716432671650,-836.28,0.00023835,2]
[327756155,1716432671660,-1217.93,0.00023835,2]
[327756156,1716432671670,-338.45509009,0.00023835,2]
[327756157,1716432671680,-500.0,0.00023835,2]
[327756158,1716432671690,-651.01,0.00023835,2]
[327756159,1716432671700,-500.0,0.00023835,2]
[327756160,1716432671710,-500.0,0.00023835,2]
[327756161,1716432671719,-818.52,0.00023835,2]
[327756162,1716432671729,-157.83871548,0.00023835,2]
[327756163,1716432671739,-500.0,0.00023835,2]
[327756164,1716432671749,-500.0,0.00023835,2]
[327756165,1716432671758,-860.87,0.00023835,2]
[327756166,1716432671769,-1049.77,0.00023835,2]
[327756167,1716432671779,-667.48,0.00023835,2]
[327756168,1716432671788,-500.0,0.00023835,2]
[327756169,1716432671798,-858.38,0.00023835,2]
[327756170,1716432671808,-500.0,0.00023835,2]
[327756171,1716432671817,-569.63,0.00023835,2]
[327756172,1716432671827,-500.0,0.00023835,2]
[327756173,1716432671838,-500.0,0.00023835,2]
[327756174,1716432671847,-500.0,0.00023835,2]
[327756175,1716432671858,-668.87,0.00023835,2]
[327756176,1716432671868,-1035.81,0.00023835,2]
[327756177,1716432671878,-1426.39,0.00023835,2]
[327756178,1716432671888,-991.74,0.00023835,2]
[327756179,1716432671898,-500.0,0.00023835,2]
[327756180,1716432671908,-500.0,0.00023835,2]
[327756181,1716432671917,-1283.32,0.00023835,2]
[327756182,1716432671928,-500.0,0.00023835,2]
[327756183,1716432671938,-483.9478904,0.00023835,2]
[327756184,1716432671947,-500.0,0.00023835,2]
[327756185,1716432671958,-2650.38,0.00023835,2]
[327756186,1716432671969,-719.97,0.00023835,2]
[327756187,1716432671979,-3769.04,0.00023835,2]
[327756188,1716432671989,-796.14,0.00023835,2]
[327756189,1716432671999,-500.0,0.00023835,2]
[327756190,1716432672009,-606.35,0.00023835,2]
[327756191,1716432672021,-500.0,0.00023835,2]
[327756192,1716432672030,-657.85,0.00023835,2]
[327756193,1716432672039,-1868.32,0.00023835,2]
[327756194,1716432672049,-667.33,0.00023835,2]
[327756195,1716432672059,-550.28,0.00023835,2]
[327756196,1716432672068,-508.08,0.00023835,2]
[327756197,1716432672078,-500.0,0.00023835,2]
[327756198,1716432672089,-198.51,0.00023835,2]
[327756199,1716432672098,-1164.2,0.00023835,2]
[327756200,1716432672108,-500.0,0.00023835,2]
[327756201,1716432672118,-705.51,0.00023835,2]
[327756202,1716432672129,-500.0,0.00023835,2]
[327756203,1716432672139,-500.0,0.00023835,2]
[327756204,1716432672148,-500.0,0.00023835,2]
[327756205,1716432672158,-512.21,0.00023835,2]
[327756206,1716432672169,-500.0,0.00023835,2]
[327756207,1716432672179,-2362.28,0.00023835,2]
[327756208,1716432672189,-500.0,0.00023835,2]
[327756209,1716432672199,-776.78,0.00023835,2]
[327756210,1716432672209,-500.0,0.00023835,2]
[327756211,1716432672219,-794.05,0.00023835,2]
[327756212,1716432672231,-509.63,0.00023835,2]
[327756213,1716432672241,-500.0,0.00023835,2]
[327756214,1716432672251,-521.29,0.00023835,2]
[327756215,1716432672262,-809.18,0.00023835,2]
[327756216,1716432672276,-1435.08,0.00023835,2]
[327756217,1716432672286,-734.15,0.00023835,2]
[327756218,1716432672296,-625.57,0.00023835,2]
[327756219,1716432672306,-1174.34,0.00023835,2]
[327756220,1716432672317,-652.81,0.00023835,2]
[327756221,1716432672327,-747.59,0.00023835,2]
[327756222,1716432672337,-500.0,0.00023835,2]
[327756223,1716432672347,-500.0,0.00023835,2]
[327756224,1716432672358,-585.21,0.00023835,2]
[327756225,1716432672367,-500.0,0.00023835,2]
[327756226,1716432672378,-3383.27,0.00023835,2]
[327756227,1716432672388,-500.0,0.00023835,2]
[327756228,1716432672398,-891.97,0.00023835,2]
[327756229,1716432672408,-809.95,0.00023835,2]
[327756230,1716432672418,-792.86,0.00023835,2]
[327756231,1716432672429,-196.308723,0.00023836,2]
[327756232,1716432672439,-156.74272551,0.00023838,2]
[327756233,1716432672449,-227.0,0.0002385,2]
[327756234,1716432672459,-5800.0,0.00023866,2]
[327756235,1716432672469,-5800.0,0.00023875,2]
[327756236,1716432672479,-5800.0,0.00023883,2]
[327756237,1716432672490,-5800.0,0.00023892,2]
[327756238,1716432672500,-153.38577743,0.00023893,2]
[327756239,1716432672510,-150.0,0.00023899,2]
[327756240,1716432672526,-7100.840285,0.000239,2]
[327756241,1716432672536,-5800.0,0.000239,2]
[327756242,1716432672546,-852.54630818,0.000239,2]
[327756243,1716432672556,-5647.87856341,0.000239,2]
[327756244,1716432672568,-924.80049643,0.000239,2]
[327756245,1716432672578,-154.99328839,0.00023934,2]
[327756246,1716432672588,-447.72562252,0.00023951,2]
[327756247,1716432672598,-153.22353761,0.00023971,2]
[327756248,1716432672610,-45704.7287207,0.00023982,2]
[327756249,1716432672620,-1815.9582518,0.00023982,2]
[327756250,1716432672630,-6863.1573297,0.00023982,2]
[327756251,1716432672640,-510.379312,0.00023982,2]
[327756252,1716432672651,-54956.7366934,0.00023984,2]
[327756253,1716432672855,-64208.7446662,0.00023984,2]
[327756254,1716432672869,-2180.1136763,0.00023984,2]
[327756255,1716432672879,-2544.2691007,0.00023984,2]
[327756256,1716432672888,-8239.4312435,0.00023984,2]
[327756257,1716432672898,-9615.7051573,0.00023984,2]
[327756258,1716432672908,-613.6953932,0.00023984,2]
[327756259,1716432672918,-717.0114744,0.00023984,2]
[327756260,1716432672928,-217.0,0.0002399,9]
[327756261,1716432672937,-150.0,0.00023997,2]
[327756262,1716432672947,-150.0,0.00023997,2]
[327756263,1716432672957,-150.0,0.00023997,2]
[327756264,1716432672967,-150.0,0.00023997,2]
[327756265,1716432672976,-2923344.98256716,0.00023998,2]
[327756266,1716432673337,-169354.29094397,0.00023998,2]
[327756267,1716432673348,-911.48925428,0.00023998,2]
[327756268,1716432673395,-5670.05233801,0.00021719,2]
[327756269,1716432673407,-489.7517793,0.00021719,2]
[327756270,1716432673418,-1506.12972601,0.00021719,2]
[327756271,1716432673429,-2240.75317411,0.00021719,2]
[327756272,1716432673442,-5905.80933626,0.00021719,2]
[327756273,1716432673454,-1026.67373655,0.00021719,2]
[327756274,1716432673466,-3094.32703647,0.00021719,2]
[327756275,1716432673477,-2500.0,0.00021719,2]
[327756276,1716432673488,-10831.79500732,0.00021719,2]
[327756277,1716432673944,-1390.42,0.00021719,2]
[327756278,1716432673956,-3248.28786597,0.00021719,2]
[327756279,1716432673966,-2283.83,0.00021917,2]
[327756280,1716432673976,-2283.83,0.00022191,2]
[327756281,1716432673986,-2283.83,0.00022465,2]
[327756282,1716432673995,-2283.83,0.00022739,2]
[327756283,1716432674004,-888.74,0.00023013,2]
[327756284,1716432674013,-2283.83,0.00023013,2]
[327756285,1716432674024,-888.74,0.00023287,2]
[327756286,1716432674033,-2283.83,0.00023287,2]
[327756287,1716432674042,-888.74,0.00023561,2]
[327756288,1716432674051,-2283.83,0.00023561,2]
[327756289,1716432674061,-888.74,0.00023835,2]
[327756290,1716432674070,-2283.83,0.00023835,2]
[327756291,1716432674079,-100912.1598816,0.00023998,2]
[327756292,1716432674126,-1.373e-05,0.00023998,2]
[327756293,1716432674634,-1061.0,0.00018719,2]
[327756294,1716432674643,-536.996,0.00021719,2]
[327756295,1716432674652,-500.0,0.00021917,2]
[327756296,1716432674662,-500.0,0.00022191,2]
[327756297,1716432674671,-500.0,0.00022465,2]
[327756298,1716432674680,-500.0,0.00022739,2]
[327756299,1716432674690,-500.0,0.00023013,2]
[327756300,1716432674699,-150.0,0.00023115,2]
[327756301,1716432674708,-500.0,0.00023287,2]
[327756302,1716432674717,-500.0,0.00023561,2]
[327756303,1716432674726,-500.0,0.00023835,2]
[327756304,1716432674735,-55858.98113584,0.00023998,2]
[327756305,1716432674746,-1373.84592932,0.00023998,2]
[327756306,1716432674802,-5488.5821737,0.00023998,2]
[327756307,1716432674814,-1962.99053343,0.00023998,2]
[327756308,1716432674825,-7369.53865698,0.00023998,2]
[327756309,1716432674836,-5715.101,0.00023998,2]
[327756315,1716432736467,152.12517498,0.0002,120]
[327756321,1716432952943,184.97,0.0003053,120]
[327756337,1716433802942,588.08631535,0.00031,120]
[327756339,1716433832783,-161.67,0.00013973,2]
[327756340,1716433832793,-155.65,0.00013973,2]
[327756341,1716433832803,-167.0,0.00016541,2]
[327756342,1716433832815,-1060.44081654,0.00016541,2]
[327756344,1716433832824,-300.0,0.00016542,2]
[327756346,1716433832833,-2407.45622018,0.00016643,2]
[327756347,1716433832842,-4689.72761118,0.00017,2]
[327756348,1716433832854,-391.92903386,0.00017,2]
[327756349,1716433832864,-216.09,0.00017336,2]
[327756350,1716433832876,-150.99,0.00017941,2]
[327756351,1716433832886,-158.51579806,0.00019093,2]
[327756352,1716433832895,-500.0,0.00019094,2]
[327756353,1716433832905,-200.0,0.00019169,2]
[327756354,1716433832916,-250.0,0.00019169,2]
[327756355,1716433832925,-200.0,0.00019254,2]
[327756356,1716433832934,-610.52,0.00019266,2]
[327756357,1716433832944,-1069.627,0.00019319,2]
[327756358,1716433832956,-570.88829332,0.00019319,2]
[327756359,1716433832968,-830.11170668,0.00019319,2]
[327756360,1716433832977,-250.267,0.00019319,2]
[327756361,1716433832986,-342.42129332,0.00019319,2]
[327756362,1716433832998,-883.57870668,0.00019319,2]
[327756363,1716433833007,-1019.19,0.00019319,2]
[327756364,1716433833016,-221.048,0.00019319,2]
[327756365,1716433833026,-716.892,0.00019319,2]
[327756366,1716433833038,-1880.25336303,0.00019319,2]
[327756368,1716433833293,-517.9614323,0.00019319,2]
[327756370,1716433833304,-803.1102161,0.00019319,2]
[327756372,1716433833315,-1682.71104532,0.00019319,2]
[327756374,1716433833327,-665.95900639,0.00019319,2]
[327756376,1716433833339,-685.05424735,0.00019319,2]
[327756378,1716433833351,-580.01574097,0.00019319,2]
[327756381,1716433833364,-8443.82740532,0.00019319,2]
[327756383,1716433833375,-22645.10754322,0.00019319,2]
[327756385,1716433833384,-216.09,0.000196,2]
[327756386,1716433833393,-2584.88,0.00019645,2]
[327756387,1716433833403,-160.4,0.00019649,2]
[327756388,1716433833412,-226.29,0.00019832,2]
[327756389,1716433833421,-168.84,0.00019876,2]
[327756390,1716433833431,-4132.39245178,0.0002,2]
[327756391,1716433833495,-1054.82021112,0.0002,2]
[327756392,1716433833504,-270.28037199,0.0002,2]
[327756393,1716433833516,-3913.38875614,0.0002,2]
[327756415,1716433838954,-11950.59547033,0.00013972,2]
[327756416,1716433838966,-6864.61300119,0.0002,2]
[327756417,1716433838976,-155.0,0.0002,2]
[327756419,1716433838985,-1263.6100219,0.0002,2]
[327756420,1716433838994,-6240.79470955,0.0002,2]
[327756421,1716433839003,-457.90189811,0.0002,2]
[327756422,1716433839012,-862.47163439,0.00020348,2]
[327756423,1716433839022,-184.97,0.00020353,2]
[327756424,1716433839031,-800.0,0.00020729,2]
[327756425,1716433839042,-718.07397259,0.00021,2]
[327756426,1716433839052,-2750.0,0.00021,2]
[327756427,1716433839061,-217.0,0.0002119,4]
[327756428,1716433839071,-167.0,0.00021351,2]
[327756429,1716433839080,-170.87,0.00021421,2]
[327756430,1716433839089,-200.0,0.00021565,2]
[327756431,1716433839099,-1000.0,0.00021614,2]
[327756432,1716433839108,-155.65,0.00021661,2]
[327756433,1716433839118,-2586.35845649,0.00021713,3]
[327756434,1716433839127,-163.8263,0.00021715,2]
[327756435,1716433839137,-105417.4147,0.00021715,2]
[327756436,1716433839146,-177.43827872,0.00021813,2]
[327756437,1716433839155,-486.44330343,0.00021815,2]
[327756438,1716433839165,-180.24310631,0.00021815,2]
[327756439,1716433839174,-167.1336782,0.00021815,2]
[327756440,1716433839183,-177.43827871,0.00021815,2]
[327756441,1716433839192,-170.50926166,0.00021815,2]
[327756442,1716433839202,-1882.62618781,0.00021815,2]
[327756443,1716433839212,-176.97177389,0.00021815,2]
[327756444,1716433839221,-1000.0,0.00021817,2]
[327756445,1716433839230,-10000.0,0.00021817,2]
[327756446,1716433839240,-167.83955701,0.00021818,2]
[327756447,1716433839249,-216.09,0.00021864,2]
[327756448,1716433839258,-328.12170058,0.00021899,2]
[327756449,1716433839268,-6772.86623355,0.000219,2]
[327756450,1716433839278,-535507.1500759,0.000219,2]
[327756451,1716433839288,-629.0,0.000219,2]
[327756452,1716433839298,-155.0,0.00021913,2]
[327756453,1716433839309,-33964.88425151,0.00021913,2]
[327756454,1716433839318,-714.964306,0.00021913,2]
[327756455,1716433839328,-301.15139776,0.00021913,2]
[327756456,1716433839337,-1490.49977626,0.00021913,2]
[327756457,1716433839347,-288.68637055,0.00021914,2]
[327756458,1716433839356,-150.0,0.00021914,2]
[327756459,1716433839366,-2140424.95008782,0.00021915,2]
[327756460,1716433839375,-628.07966112,0.00021915,2]
[327756461,1716433839385,-43067.26600734,0.00021917,11]
[327756462,1716433839394,-500.0,0.00021917,2]
[327756463,1716433839403,-500.0,0.00021917,2]
[327756464,1716433839412,-517.19,0.00021917,2]
[327756465,1716433839422,-500.0,0.00021917,2]
[327756466,1716433839431,-500.0,0.00021917,2]